bitfinex-derivatives/quotes_ETHF0:USTF0_20250422
["timestamp","ask_amount","ask_price","bid_price","bid_amount"]
[1745330915553,5.435,1640.8,1640.7,5.05163576]
[1745330916459,5.435,1640.8,1640.7,3.83303576]
[1745330916663,10.41902,1640.8,1640.7,3.83303576]
[1745330916865,10.41902,1640.8,1640.7,0.00913576]
[1745330918063,9.2005,1640.8,1640.7,0.00913576]
[1745330918364,10.41902,1640.8,1640.7,0.00913576]
[1745330919263,10.41902,1640.8,1640.2,3.2078]
[1745330919264,20.45464,1640.8,1640.2,3.2078]
[1745330919456,1.21882,1640.4,1640.3,3.8284]
[1745330919667,0.0069488,1640.3,1640.1,1.219]
[1745330919864,5.2163388,1640.3,1640.2,3.8284]
[1745330920163,0.0069488,1640.2,1640.0,1.21907]
[1745330920358,6.65506,1640.1,1639.9,3.7966]
[1745330920569,9.3786,1640.1,1639.9,3.80573576]
[1745330920766,9.3786,1640.1,1640.0,1.2121712]
[1745330920960,5.436,1640.1,1640.0,1.2121712]
[1745330921163,0.00913576,1640.2,1640.1,1.21904]
[1745330921457,5.42686424,1640.3,1640.2,1.21897]
[1745330921763,5.42686424,1640.3,1640.2,4.42677]
[1745330921964,5.42686424,1640.3,1640.2,8.22337]
[1745330923162,5.76e-06,1640.4,1640.3,1.21889]
[1745330923751,5.43600576,1640.4,1640.3,1.21889]
[1745330925365,5.43600576,1640.4,1640.2,7.0044]
[1745330925571,3.6728,1640.3,1640.2,1.21894]
[1745330926161,5.43600576,1640.4,1640.1,3.7377]
[1745330926363,5.43600576,1640.4,1640.3,1.21889]
[1745330927368,5.43600576,1640.4,1640.3,4.90119]
[1745330928963,5.43600576,1640.4,1640.3,9.90119]
[1745330929165,3.75298576,1640.4,1640.3,13.82399]
[1745330929368,3.8636,1640.8,1640.7,1.2186]
[1745330929567,9.2936512,1640.8,1640.7,1.2186]
[1745330931266,0.00913576,1640.9,1640.8,1.21852]
[1745330931656,0.00913576,1640.9,1640.8,4.42632]
[1745330936368,3.91973576,1640.9,1640.8,4.42632]
[1745330936670,3.91973576,1640.9,1640.8,1.21852]
[1745330936866,1.21852,1640.8,1640.7,1.21854]
[1745330937069,7.79793576,1640.9,1640.5,3.04683]
[1745330937070,9.01638576,1640.9,1640.8,1.21852]
[1745330937272,9.32333576,1640.9,1640.8,1.21852]
[1745330938063,5.44513576,1640.9,1640.8,1.21852]
[1745330938672,5.44513576,1640.9,1640.8,4.42632]
[1745330939771,5.44513576,1640.9,1640.8,1.21852]
[1745330940960,0.00913576,1640.9,1640.8,1.21852]
[1745330941166,3.83468,1641.0,1640.9,1.21845]
[1745330941377,92.947,1641.5,1641.4,1.21808]
[1745330941573,5.426,1641.6,1641.5,1.218]
[1745330942061,5.426,1641.6,1641.5,8.1688]
[1745330942267,5.426,1641.6,1641.5,4.961]
[1745330942574,5.426,1641.6,1641.5,8.1688]
[1745330943363,96.7665,1642.1,1642.0,1.21763]
[1745330943572,98.373,1642.1,1642.0,1.21763]
[1745330943768,103.373,1642.1,1641.5,3.2078]
[1745330943963,1.21771,1642.0,1641.9,1.21773]
[1745330944173,1.21771,1642.0,1641.8,1.21778]
[1745330944372,3.9085,1641.9,1641.8,1.21778]
[1745330944772,101.5808,1642.1,1641.7,3.04467]
[1745330944972,98.373,1642.1,1642.0,1.21766]
[1745330945870,99.59059,1642.1,1641.9,1.21768]
[1745330946262,98.373,1642.1,1642.0,1.21765]
[1745330946873,98.373,1642.1,1641.9,1.21767]
[1745330946874,99.5906,1642.1,1641.9,1.21767]
[1745330947076,98.373,1642.1,1642.0,1.21765]
[1745330948585,103.373,1642.1,1641.8,1.21786]
[1745330948783,4.42561,1642.0,1641.9,1.21783]
[1745330949280,8.2078,1642.0,1641.9,1.21783]
[1745330950081,98.373,1642.1,1642.0,1.21775]
[1745330950876,98.373,1642.1,1641.8,13.3055]
[1745330950877,98.373,1642.1,1641.9,1.21779]
[1745330951181,99.59074,1642.1,1641.9,1.21777]
[1745330951480,99.59074,1642.1,1641.9,1.21776]
[1745330951678,98.373,1642.1,1642.0,1.21775]
[1745330953477,98.373,1642.1,1641.9,1.21777]
[1745330953677,98.373,1642.1,1642.0,1.21775]
[1745330954176,99.59068,1642.1,1642.0,1.21775]
[1745330954579,1.21775,1642.0,1641.9,1.21778]
[1745330955075,1.21787,1641.9,1641.8,1.21786]
[1745330955276,104.62502,1642.1,1641.6,6.74215]
[1745330955476,1.21786,1641.9,1641.8,1.21784]
[1745330955787,1.21789,1641.9,1641.8,1.21786]
[1745330955984,1.21797,1641.8,1641.7,1.21793]
[1745330956386,1.21788,1641.9,1641.8,1.21784]
[1745330956686,10.43368,1641.9,1641.8,1.21784]
[1745330956886,13.64148,1641.9,1641.8,1.21784]
[1745330957287,1.21797,1641.8,1641.7,1.21792]
[1745330957482,5.00977,1641.8,1641.7,1.21792]
[1745330957677,3.7918,1641.8,1641.7,1.21792]
[1745330958289,5.424,1641.9,1641.8,1.2179]
[1745330958889,9.2158,1641.9,1641.8,1.2179]
[1745330959085,5.424,1641.9,1641.8,1.2179]
[1745330960790,5.424,1641.9,1641.5,10.44692]
[1745330960982,5.424,1641.9,1641.5,10.44691]
[1745330961183,9.147,1641.9,1641.6,3.04512]
[1745330961387,9.147,1641.9,1641.8,1.2179]
[1745330961581,0.4905361,1643.6,1642.7,3.04297]
[1745330961791,3.723,1643.5,1643.0,3.2078]
[1745330961992,3.723,1643.5,1643.3,1.21676]
[1745330962188,3.723,1643.5,1643.4,1.21672]
[1745330962389,5.424,1643.7,1643.6,1.21657]
[1745330962588,5.424,1643.7,1643.5,5.07111]
[1745330962887,5.424,1643.7,1643.6,1.21657]
[1745330963192,7.6958,1643.8,1643.6,3.2078]
[1745330963193,3.773,1643.8,1643.6,3.2078]
[1745330963390,3.773,1643.8,1643.7,5.07099]
[1745330963999,5.424,1643.9,1643.8,1.21642]
[1745330964199,3.2078,1644.0,1643.7,3.8545]
[1745330964402,3.2078,1644.0,1643.9,1.21635]
[1745330964601,9.195,1644.2,1643.9,3.2078]
[1745330964902,9.195,1644.2,1644.1,1.2162]
[1745330965098,3.2078,1644.8,1644.2,6.099]
[1745330965399,3.2078,1645.2,1644.7,3.2078]
[1745330965601,3.8032,1645.1,1644.8,1.21563]
[1745330965903,3.8032,1645.1,1644.8,1.22478576]
[1745330966090,3.8032,1645.1,1644.8,0.00913576]
[1745330966293,3.8032,1645.1,1644.8,3.21693576]
[1745330966502,3.8032,1645.1,1644.8,0.00913576]
[1745330966895,5.419,1645.0,1644.8,0.00913576]
[1745330967097,9.2222,1644.9,1644.8,0.00913576]
[1745330967293,5.419,1644.9,1644.8,0.00913576]
[1745330969299,1.21576,1644.7,1644.4,3.2078]
[1745330969492,5.409,1644.6,1644.2,7.2219]
[1745330969694,5.409,1644.6,1644.3,1.21601]
[1745330969695,9.078,1644.6,1644.3,1.21601]
[1745330969895,9.078,1644.6,1644.2,7.2219]
[1745330970097,9.078,1644.6,1644.5,1.2159]
[1745330970602,9.078,1644.6,1644.5,5.23]
[1745330970797,5.409,1644.6,1644.5,5.23]
[1745330972807,9.4323,1644.6,1644.5,5.23]
[1745330973402,5.409,1644.6,1644.5,5.23]
[1745330974199,5.407,1644.9,1644.8,1.21568]
[1745330975609,5.407,1644.9,1644.8,4.42348]
[1745330976106,5.407,1644.9,1644.8,1.21568]
[1745330976706,5.407,1644.9,1644.8,4.42348]
[1745330976907,5.407,1644.9,1644.8,1.21568]
[1745330977203,5.407,1644.9,1644.8,4.42348]
[1745330977801,5.407,1644.9,1644.8,1.21568]
[1745330978608,0.75544445,1644.9,1644.8,1.21568]
[1745330979512,0.75544445,1644.9,1644.8,4.42348]
[1745330979709,4.0233,1645.1,1645.0,1.21553]
[1745330979905,9.4283,1645.1,1645.0,1.21553]
[1745330980905,12.6361,1645.1,1645.0,1.21553]
[1745330981606,12.6361,1645.1,1644.8,4.25486]
[1745330981607,1.21554,1645.0,1644.9,1.21561]
[1745330981805,9.21164,1645.0,1644.9,1.21561]
[1745330982006,14.2117,1645.0,1644.9,1.21561]
[1745330982507,1.21572,1644.8,1644.7,1.21571]
[1745330982811,8.6118,1644.8,1644.7,1.21571]
[1745330984702,8.6118,1644.8,1644.7,1.11571]
[1745330984905,13.62968,1644.8,1644.7,1.11571]
[1745330985108,12.414,1644.8,1644.7,1.11571]
[1745330985303,13.62968,1644.8,1644.7,1.11571]
[1745330985500,12.414,1644.8,1644.7,1.11571]
[1745330985907,12.414,1644.8,1644.5,6.69412]
[1745330986107,9.2062,1644.8,1644.7,1.21575]
[1745330987114,5.404,1644.8,1644.7,1.21575]
[1745330987316,5.404,1644.8,1644.7,6.21575]
[1745330987514,5.404,1644.8,1644.7,10.18445]
[1745330987712,3.9593,1645.0,1644.9,1.21561]
[1745330988416,9.82726,1645.1,1644.9,1.21556]
[1745330988619,9.8273,1645.1,1644.9,1.21556]
[1745330988817,3.9593,1645.0,1644.9,1.21556]
[1745330989422,5.17489,1645.0,1644.7,5.18445]
[1745330989714,3.9593,1645.0,1644.9,1.21561]
[1745330989912,8.6118,1645.1,1645.0,1.21553]
[1745330990109,9.82726,1645.1,1645.0,1.21553]
[1745330990313,8.6118,1645.1,1645.0,1.21553]
[1745330990718,4.88021,1645.3,1645.2,1.21539]
[1745330991114,3.6649,1645.3,1645.2,1.21539]
[1745330991315,98.271,1645.4,1645.3,1.21531]
[1745330991514,98.271,1645.4,1645.3,5.24116792]
[1745330992017,5.404,1645.4,1645.3,5.24116792]
[1745330992818,5.404,1645.4,1645.3,10.24116792]
[1745330993117,5.404,1645.4,1645.3,2.03336792]
[1745330993324,5.404,1645.4,1645.3,0.81805792]
[1745330993518,5.404,1645.4,1645.1,1.21544]
[1745330993519,1.21533,1645.3,1645.1,1.21544]
[1745330993825,8.77443,1645.3,1644.9,3.8041]
[1745330994024,11.3053,1645.3,1645.1,1.21546]
[1745330994223,11.3053,1645.3,1645.1,1.21543]
[1745330994426,12.52063,1645.3,1644.9,3.8041]
[1745330994618,12.52063,1645.3,1645.1,1.21546]
[1745330994818,11.3053,1645.3,1645.2,1.21539]
[1745330995024,11.3053,1645.3,1644.9,6.84312]
[1745330995025,12.52064,1645.3,1645.1,1.21543]
[1745330995224,11.3053,1645.3,1645.2,1.21539]
[1745330995422,12.52061,1645.3,1645.2,1.21539]
[1745330995726,12.52068,1645.3,1645.2,1.21539]
[1745330995926,12.52068,1645.3,1645.0,3.8041]
[1745330996118,11.3053,1645.3,1645.2,1.21539]
[1745330996724,12.52061,1645.3,1645.2,1.21539]
[1745330996925,11.3053,1645.3,1645.2,1.21539]
[1745330997121,5.404,1645.4,1645.3,1.21531]
[1745330998427,5.404,1645.4,1645.3,2.00882068]
[1745330999122,5.404,1645.4,1645.3,5.87962068]
[1745330999323,8.95916,1645.8,1645.3,3.8708]
[1745330999324,9.166,1645.8,1645.3,3.8708]
[1745330999528,9.166,1645.8,1645.7,1.21502]
[1745330999529,5.398,1645.8,1645.7,1.21502]
[1745330999925,9.4023,1645.8,1645.7,1.21502]
[1745331000824,3.2078,1646.1,1645.7,3.03755]
[1745331001025,5.397,1646.1,1646.0,1.21479]
[1745331002825,5.397,1646.1,1646.0,5.11149]
[1745331004127,5.397,1646.1,1646.0,1.21479]
[1745331004522,10.397,1646.1,1645.6,3.0377]
[1745331004833,1.21504,1645.7,1645.5,1.21512]
[1745331005031,5.396,1645.6,1645.5,1.21512]
[1745331005726,3.2078,1645.9,1645.8,1.21494]
[1745331005936,5.396,1645.9,1645.8,1.21494]
[1745331006130,5.396,1645.9,1645.8,4.42274]
[1745331006437,5.396,1645.9,1645.8,1.21494]
[1745331007522,3.2078,1646.3,1645.8,9.42274]
[1745331007823,3.2078,1646.3,1646.2,1.21465]
[1745331008024,3.2078,1646.3,1645.9,6.9405]
[1745331008025,8.6038,1646.3,1645.9,3.9035]
[1745331008230,1.21466,1646.2,1646.0,1.21473]
[1745331008430,1.21466,1646.2,1646.1,1.21472]
[1745331008941,9.81843,1646.3,1646.1,1.21472]
[1745331009123,9.81843,1646.3,1646.2,1.21465]
[1745331009124,8.6038,1646.3,1646.2,1.21465]
[1745331009529,13.6038,1646.3,1646.2,1.21465]
[1745331009831,13.6038,1646.3,1646.1,1.21466]
[1745331010035,8.6038,1646.3,1646.2,1.21465]
[1745331010436,14.81841,1646.3,1646.2,1.21465]
[1745331010941,13.6038,1646.3,1646.0,6.74863]
[1745331011239,9.81839,1646.3,1646.2,1.21465]
[1745331011639,14.81839,1646.3,1646.2,1.21465]
[1745331011933,13.6038,1646.3,1646.2,1.21465]
[1745331012138,0.0143,1646.4,1646.3,1.21457]
[1745331012438,5.395,1646.4,1646.3,1.21457]
[1745331012829,3.8908,1646.8,1646.3,8.2078]
[1745331013025,5.395,1646.9,1646.8,1.2142]
[1745331013229,6.60917,1646.9,1646.5,3.03597]
[1745331013440,6.60917,1646.9,1646.6,3.9011]
[1745331013941,1.21443,1646.5,1646.4,0.00913576]
[1745331014232,5.395,1646.5,1646.4,1.22363576]
[1745331016039,5.395,1646.5,1646.4,5.08073576]
[1745331016641,6.60943,1646.5,1646.4,0.00913576]
[1745331016839,14.81723,1646.5,1646.4,0.00913576]
[1745331018350,1.2145,1646.4,1646.3,0.0142]
[1745331018542,8.7942,1646.4,1646.3,0.0142]
[1745331018743,3.03648,1646.3,1645.9,5.03112]
[1745331018954,1.21479,1646.0,1645.9,5.03112]
[1745331019244,9.0853,1646.2,1646.1,1.21472]
[1745331019451,5.394,1646.2,1646.1,9.42252]
[1745331019646,5.394,1646.2,1646.1,4.42252]
[1745331019849,5.394,1646.2,1645.9,7.0241]
[1745331020046,5.394,1646.2,1646.1,1.21472]
[1745331021650,0.00913576,1646.3,1646.2,1.21465]
[1745331021846,0.00913576,1646.3,1646.2,4.80165]
[1745331022052,0.00913576,1646.3,1646.2,13.73405]
[1745331022241,0.00913576,1646.3,1645.8,3.06064576]
[1745331022441,6.60869,1646.2,1645.8,3.61033576]
[1745331022644,6.60869,1646.2,1646.0,1.21479]
[1745331022845,1.21474,1646.1,1646.0,1.21479]
[1745331023150,9.0598,1646.2,1645.8,4.82523576]
[1745331023151,12.09647,1646.2,1645.8,4.82523576]
[1745331023349,10.27449,1646.2,1645.8,9.85545576]
[1745331023540,5.394,1646.2,1646.1,1.21472]
[1745331023746,6.60865,1646.2,1646.1,1.21472]
[1745331023944,5.394,1646.2,1646.1,1.21472]
[1745331024655,6.60865,1646.2,1646.1,1.21472]
[1745331024850,5.394,1646.2,1646.1,1.21472]
[1745331025247,0.00913576,1646.3,1646.2,1.21465]
[1745331025446,0.00913576,1646.3,1646.2,12.40955]
[1745331025648,5.394,1646.6,1646.5,1.21443]
[1745331025949,5.394,1646.9,1646.5,3.03607]
[1745331026252,1.21428,1646.7,1646.6,5.12768]
[1745331026554,1.21428,1646.7,1646.6,3.9134]
[1745331026955,7.4874,1646.8,1646.7,1.21428]
[1745331027447,7.4874,1646.8,1646.6,5.12771]
[1745331027754,7.4874,1646.8,1646.7,1.21428]
[1745331027957,5.394,1646.9,1646.8,1.2142]
[1745331028247,5.394,1646.9,1646.7,3.8707]
[1745331028449,3.8782,1647.1,1647.0,1.21406]
[1745331028655,12.211,1647.3,1647.0,1.21404]
[1745331028849,3.6092,1647.1,1647.0,1.21406]
[1745331029052,3.6092,1647.1,1646.9,3.8707]
[1745331029256,4.8232,1647.1,1646.8,1.21416]
[1745331029553,5.387,1647.0,1646.8,1.21416]
[1745331029752,5.387,1647.0,1646.9,1.21413]
[1745331031554,5.387,1647.0,1646.9,17.36843]
[1745331031857,3.90908,1647.4,1647.3,1.21384]
[1745331032150,9.2728,1647.4,1647.3,1.21384]
[1745331033248,5.386,1647.4,1647.3,1.21384]
[1745331035258,5.386,1647.4,1647.3,4.42164]
[1745331035852,5.386,1647.4,1647.3,1.21384]
[1745331036049,5.386,1647.4,1647.2,0.0142]
[1745331036255,5.386,1647.4,1647.3,1.21384]
[1745331036747,3.2078,1647.7,1647.6,1.21361]
[1745331036958,3.2078,1647.7,1647.6,4.79201]
[1745331037858,95.87695,1647.9,1647.8,1.21347]
[1745331038059,101.26195,1647.9,1647.8,1.21347]
[1745331038856,101.26195,1647.9,1647.7,1.21348]
[1745331039058,101.26195,1647.9,1647.8,1.21347]
[1745331039453,9.8048,1648.5,1648.3,1.21305]
[1745331039660,3.6861,1648.4,1648.3,1.2131]
[1745331040249,4.89913,1648.4,1648.1,3.6884]
[1745331040459,3.2078,1648.2,1648.1,1.2132]
[1745331040754,8.5918,1648.2,1648.1,1.2132]
[1745331040959,5.384,1648.2,1648.1,1.2132]
[1745331044257,1.21334,1648.0,1647.9,1.21339]
[1745331044566,1.21334,1648.0,1647.8,1.21345]
[1745331044567,1.21337,1648.0,1647.8,1.21345]
[1745331044763,9.1121,1647.9,1647.8,1.21345]
[1745331044968,9.1121,1647.9,1647.8,1.21347]
[1745331045657,10.32552,1647.9,1647.6,6.69564]
[1745331045853,10.32549,1647.9,1647.8,1.21347]
[1745331046059,9.1121,1647.9,1647.8,1.21347]
[1745331046567,3.6037,1648.1,1648.0,1.21332]
[1745331047463,3.6915,1648.1,1648.0,1.21332]
[1745331051074,5.382,1648.2,1648.1,1.21325]
[1745331051465,6.59517,1648.2,1648.1,1.21325]
[1745331051665,6.59517,1648.2,1647.7,3.2078]
[1745331051666,17.3294,1648.2,1647.7,3.2078]
[1745331051871,3.6999,1648.1,1647.9,1.21337]
[1745331052169,4.95292,1648.0,1647.9,1.21337]
[1745331052567,4.95292,1648.0,1647.8,1.2134]
[1745331052768,9.1087,1647.9,1647.8,1.2134]
[1745331052971,14.06169,1647.9,1647.8,1.2134]
[1745331053374,12.8483,1647.9,1647.8,1.2134]
[1745331054972,14.06169,1647.9,1647.8,1.2134]
[1745331055471,12.8483,1647.9,1647.8,1.2134]
[1745331055968,16.0561,1647.9,1647.8,1.2134]
[1745331056172,17.26949,1647.9,1647.8,1.2134]
[1745331056366,16.0561,1647.9,1647.8,1.2134]
[1745331056568,17.26949,1647.9,1647.8,1.2134]
[1745331056771,1.21361,1647.6,1647.5,0.00910718]
[1745331057074,5.382,1647.6,1647.5,1.22273718]
[1745331057271,6.59561,1647.6,1647.5,1.22273718]
[1745331057472,12.8146,1647.6,1647.5,1.22273718]
[1745331058677,14.02821,1647.6,1647.5,1.22273718]
[1745331059061,12.8146,1647.6,1647.5,1.22273718]
[1745331060674,14.02821,1647.6,1647.5,1.22273718]
[1745331061271,14.02821,1647.6,1647.5,0.00910718]
[1745331061775,12.8146,1647.6,1647.5,1.22279718]
[1745331061972,99.32325,1647.9,1647.8,1.21347]
[1745331061973,9.1017,1647.9,1647.8,1.21347]
[1745331062179,5.375,1648.3,1648.2,1.21317]
[1745331062467,5.375,1648.3,1648.0,3.03316]
[1745331062666,3.9076,1648.2,1648.1,5.06535]
[1745331063073,5.375,1648.3,1648.2,1.21317]
[1745331063273,9.2948,1648.3,1648.2,5.04287]
[1745331063672,5.374,1648.7,1648.6,1.21288]
[1745331070074,5.374,1648.7,1648.6,4.42068]
[1745331070580,5.374,1648.7,1648.6,1.21288]
[1745331071774,1.21288,1648.6,1648.5,1.22200718]
[1745331071977,10.8161,1648.6,1648.5,1.22205718]
[1745331073975,5.374,1648.7,1648.6,1.21288]
[1745331074178,13.5818,1648.7,1648.5,0.00910718]
[1745331074368,7.2542,1648.6,1648.5,0.00910718]
[1745331074772,7.2542,1648.6,1648.5,1.22205718]
[1745331075377,7.2542,1648.6,1648.5,4.92875718]
[1745331076376,3.2078,1648.7,1648.6,1.21288]
[1745331076687,9.79262,1648.7,1648.6,1.21288]
[1745331077181,1.21288,1648.6,1648.5,0.00910718]
[1745331077386,4.94908,1648.6,1648.5,0.00910718]
[1745331077881,4.94908,1648.6,1648.5,1.22205718]
[1745331078087,3.7362,1648.6,1648.5,1.22205718]
[1745331078382,4.94908,1648.6,1648.5,0.00910718]
[1745331078582,4.94908,1648.6,1648.5,1.22205718]
[1745331079173,4.94908,1648.6,1648.5,0.00910718]
[1745331079572,3.7362,1648.6,1648.5,1.22205718]
[1745331079982,4.94908,1648.6,1648.5,0.00910718]
[1745331080284,4.94908,1648.6,1648.5,1.22205718]
[1745331080883,3.7362,1648.6,1648.5,1.22205718]
[1745331081086,3.2078,1648.7,1648.6,1.21288]
[1745331081282,8.5808,1648.7,1648.6,1.21288]
[1745331081579,9.79361,1648.7,1648.6,1.21288]
[1745331081784,1.21288,1648.6,1648.5,1.22200718]
[1745331081984,5.06488,1648.6,1648.5,0.00910718]
[1745331082284,5.06488,1648.6,1648.5,1.22205718]
[1745331082982,5.06488,1648.6,1648.5,0.00910718]
[1745331083884,10.06488,1648.6,1648.5,1e-08]
[1745331085178,10.06488,1648.6,1647.9,6.62033]
[1745331085179,1.21335,1648.0,1647.7,1.21354]
[1745331085377,5.373,1647.9,1647.8,1.21347]
[1745331085785,5.373,1647.9,1647.8,6.21347]
[1745331085980,5.373,1647.9,1647.8,1.21347]
[1745331086388,5.34969282,1647.9,1647.8,9.42127]
[1745331086687,5.34969282,1647.9,1647.8,13.32457]
[1745331086887,5.34969282,1647.9,1647.8,4.42127]
[1745331087083,5.34969282,1647.9,1647.7,8.62690718]
[1745331087280,5.34969282,1647.9,1647.8,1.21347]
[1745331091489,5.34969282,1647.9,1647.7,0.00910718]
[1745331091685,3.6244,1647.8,1647.7,1.22264718]
[1745331091890,5.34969282,1647.9,1647.8,1.21347]
[1745331093485,5.34969282,1647.9,1647.8,4.42127]
[1745331093691,3.24398282,1647.9,1647.8,4.42127]
[1745331093892,5.365,1648.2,1648.0,1.21332]
[1745331094088,5.365,1648.2,1648.1,5.08315]
[1745331094486,9.2821,1648.2,1648.1,1.21325]
[1745331095283,5.365,1648.2,1648.1,1.21325]
[1745331095491,5.365,1648.2,1648.1,5.08315]
[1745331095887,9.2821,1648.2,1648.1,5.08315]
[1745331096088,5.365,1648.2,1648.1,5.08315]
[1745331096295,92.526,1648.3,1648.2,1.21317]
[1745331096490,97.891,1648.3,1648.2,4.78627]
[1745331096795,102.6856,1648.3,1648.2,1.21317]
[1745331097085,101.4725,1648.3,1648.2,1.21317]
[1745331097794,102.6856,1648.3,1648.2,1.21317]
[1745331097994,105.8934,1648.3,1648.2,1.21317]
[1745331098592,104.6803,1648.3,1648.2,1.21317]
[1745331099292,104.6803,1648.3,1648.1,1.2132]
[1745331099492,4.92501,1648.2,1647.9,3.03349]
[1745331099683,1.21318,1648.2,1648.1,1.21325]
[1745331100995,1.21329,1648.1,1648.0,1.21326]
[1745331101295,3.2078,1648.1,1648.0,1.21326]
[1745331101596,1.21337,1648.0,1647.9,1.21334]
[1745331101787,9.1093,1648.0,1647.9,1.21334]
[1745331103786,9.1093,1648.0,1647.9,5.15944]
[1745331104695,9.1093,1648.0,1647.9,1.21334]
[1745331104995,9.1093,1648.0,1647.9,5.15944]
[1745331105391,10.32262,1648.0,1647.9,1.21334]
[1745331105595,1.21343,1647.9,1647.8,1.21341]
[1745331105894,4.42123,1647.9,1647.8,1.21341]
[1745331106099,3.03392,1647.7,1647.0,3.03498]
[1745331106395,4.42161,1647.4,1647.3,1.21384]
[1745331106594,3.2078,1647.4,1647.3,1.21384]
[1745331106795,12.1887,1647.6,1647.5,1.21369]
[1745331107000,13.40231,1647.6,1647.5,1.21369]
[1745331107190,12.1887,1647.6,1647.5,1.21369]
[1745331107383,0.00910718,1647.7,1647.6,1.21361]
[1745331107787,3.2078,1648.3,1648.2,1.21317]
[1745331107988,4.82914,1648.2,1648.0,1.21327]
[1745331108192,4.82914,1648.2,1648.1,1.21325]
[1745331108493,8.03694,1648.2,1648.1,1.21325]
[1745331108994,1.21329,1648.1,1648.0,1.2133]
[1745331109306,8.03692,1648.2,1648.1,1.21325]
[1745331109597,1.21325,1648.1,1648.0,1.21326]
[1745331109903,8.03691,1648.2,1648.1,1.21325]
[1745331110299,6.8237,1648.2,1647.9,3.733]
[1745331110598,8.03693,1648.2,1648.1,1.21325]
[1745331111301,3.6159,1648.2,1648.1,1.21325]
[1745331111694,5.37401196,1648.3,1648.2,1.21317]
[1745331112900,4.8536852,1648.3,1648.2,1.21317]
[1745331113201,6.0667852,1648.3,1648.1,3.8112]
[1745331113400,4.8536852,1648.3,1648.2,1.21317]
[1745331113897,6.0667852,1648.3,1648.2,1.21317]
[1745331114095,4.8536852,1648.3,1648.2,1.21317]
[1745331114401,4.8536852,1648.3,1647.9,3.03349]
[1745331114600,3.2078,1648.1,1648.0,1.21332]
[1745331116596,9.2746052,1648.3,1648.2,1.21317]
[1745331116804,17.17213196,1648.3,1648.2,1.21317]
[1745331117801,12.75121196,1648.3,1648.2,1.21317]
[1745331119004,17.17211196,1648.3,1648.2,1.21317]
[1745331119205,15.95901196,1648.3,1648.2,1.21317]
[1745331119405,17.17211196,1648.3,1648.2,1.21317]
[1745331119904,15.95901196,1648.3,1648.2,1.21317]
[1745331120104,12.16851196,1648.3,1648.2,1.21317]
[1745331122006,5.37401196,1648.3,1648.2,1.21317]
[1745331122503,1e-08,1648.3,1648.2,1.21317]
[1745331122700,1e-08,1648.3,1648.2,4.84017]
[1745331122701,5.35500001,1648.3,1648.2,4.84017]
[1745331123205,5.35500001,1648.3,1648.2,9.84017]
[1745331125706,5.35500001,1648.3,1648.2,4.84017]
[1745331127307,8.94600001,1648.3,1648.2,4.84017]
[1745331127604,5.35500001,1648.3,1648.2,4.84017]
[1745331129902,4.06678001,1648.3,1648.2,8.04797]
[1745331130409,92.545,1648.5,1648.2,8.04797]
[1745331130410,92.545,1648.5,1648.4,1.21303]
[1745331130607,97.899,1648.5,1648.4,4.42083]
[1745331131007,97.899,1648.5,1648.4,4.94493]
[1745331134606,97.899,1648.5,1648.4,8.15273]
[1745331135810,97.899,1648.5,1648.4,4.94493]
[1745331136408,101.5268,1648.5,1648.4,4.94493]
[1745331136611,1.21303,1648.4,1648.3,1.22213718]
[1745331136809,7.4069,1648.4,1648.3,1.22213718]
[1745331137312,8.61993,1648.4,1648.3,1.22213718]
[1745331137508,7.4069,1648.4,1648.3,1.22213718]
[1745331137910,8.61993,1648.4,1648.3,1.22213718]
[1745331138218,8.61993,1648.4,1648.3,1.22220718]
[1745331139311,7.4069,1648.4,1648.3,1.22220718]
[1745331139514,8.61993,1648.4,1648.3,1.22220718]
[1745331141116,7.4069,1648.4,1648.3,1.22220718]
[1745331146617,7.4069,1648.4,1648.3,0.00910718]
[1745331146819,8.61993,1648.4,1648.3,0.00910718]
[1745331147006,8.61993,1648.4,1648.3,1.22220718]
[1745331147210,7.4069,1648.4,1648.3,1.22220718]
[1745331147720,7.4069,1648.4,1648.3,0.00910718]
[1745331147918,8.61993,1648.4,1648.3,0.00910718]
[1745331148121,7.4069,1648.4,1648.3,0.00910718]
[1745331148616,7.4069,1648.4,1648.3,1.22220718]
[1745331151115,8.61993,1648.4,1648.3,0.00910718]
[1745331151920,22.31687035,1648.4,1647.7,3.669]
[1745331152117,1.21366,1647.6,1647.2,11.04909525]
[1745331152318,10.46751,1647.5,1647.2,14.71809525]
[1745331152617,3.9285,1647.5,1647.4,1.21376]
[1745331152816,9.2705,1647.5,1647.4,1.21376]
[1745331153222,13.1703,1647.5,1647.4,1.21376]
[1745331154117,14.38399,1647.5,1647.4,1.21376]
[1745331154620,13.1703,1647.5,1647.4,1.21376]
[1745331154809,14.38399,1647.5,1647.4,1.21376]
[1745331156416,13.1703,1647.5,1647.4,1.21376]
[1745331157623,14.38399,1647.5,1647.4,1.21376]
[1745331157825,14.38399,1647.5,1647.3,1.22291718]
[1745331158126,3.6425,1647.4,1647.3,1.22291718]
[1745331158322,9.2705,1647.5,1647.3,0.00910718]
[1745331158527,12.913,1647.5,1647.4,1.21376]
[1745331158824,9.2705,1647.5,1647.4,5.09876]
[1745331159026,12.913,1647.5,1647.4,5.09876]
[1745331159430,14.12669,1647.5,1647.4,5.09876]